bitfinex/quotes_BTCUSD_20241028
["timestamp","ask_amount","ask_price","bid_price","bid_amount"]
[1730140844824,0.40456208,69026.0,69025.0,0.44997822]
[1730140845701,0.40456208,69026.0,69025.0,0.44497822]
[1730140845924,0.40456208,69026.0,69025.0,0.45097822]
[1730140846143,0.18039008,69026.0,69025.0,0.45097822]
[1730140846370,0.32526208,69026.0,69025.0,0.45097822]
[1730140847270,0.32526208,69026.0,69025.0,0.44497822]
[1730140847480,0.32526208,69026.0,69025.0,0.44597822]
[1730140847691,0.32526208,69026.0,69025.0,0.44497822]
[1730140848109,0.3252595,69026.0,69025.0,0.44597822]
[1730140848946,0.34691647,69026.0,69025.0,0.44597822]
[1730140849364,0.34691647,69026.0,69025.0,0.44497822]
[1730140849573,0.49742028,69026.0,69025.0,0.44497822]
[1730140850035,0.49742028,69026.0,69025.0,0.44580222]
[1730140850260,0.34691647,69026.0,69025.0,0.44580222]
[1730140850924,0.34856447,69026.0,69025.0,0.44680222]
[1730140851355,0.34856447,69026.0,69025.0,0.44580222]
[1730140852261,0.03413396,69026.0,69025.0,0.44580222]
[1730140852479,0.03413396,69026.0,69025.0,0.59680222]
[1730140852480,0.001648,69026.0,69025.0,0.59680222]
[1730140852693,0.01518129,69026.0,69025.0,0.59680222]
[1730140853798,0.01518129,69026.0,69025.0,0.59580222]
[1730140854446,0.23299085,69026.0,69025.0,0.44580222]
[1730140854687,0.01518129,69026.0,69025.0,0.44680222]
[1730140855147,0.25709602,69026.0,69025.0,0.44680222]
[1730140855381,0.2895873,69026.0,69025.0,0.44680222]
[1730140855596,0.28958969,69026.0,69025.0,0.44680222]
[1730140855815,0.28958969,69026.0,69025.0,0.441454]
[1730140856275,0.28958969,69026.0,69025.0,0.44658823]
[1730140859308,0.25439414,69026.0,69025.0,0.44658823]
[1730140859522,0.27880423,69026.0,69025.0,0.44658823]
[1730140859734,0.28964777,69026.0,69025.0,0.44658823]
[1730140861050,0.14477577,69026.0,69025.0,0.44658823]
[1730140861529,0.28964777,69026.0,69025.0,0.44658823]
[1730140861972,0.28965373,69026.0,69025.0,0.44658823]
[1730140862441,0.192611,69026.0,69025.0,0.44658823]
[1730140863161,0.01520242,69026.0,69025.0,0.75726323]
[1730140863643,0.01520242,69026.0,69025.0,0.83756323]
[1730140863644,0.001648,69026.0,69025.0,0.83756323]
[1730140864139,0.001648,69026.0,69025.0,0.83656323]
[1730140864383,0.001648,69026.0,69025.0,1.00206704]
[1730140864852,0.001648,69026.0,69025.0,1.00606704]
[1730140865073,0.001648,69026.0,69025.0,1.00806704]
[1730140865554,0.001648,69026.0,69025.0,1.18996083]
[1730140866026,0.001648,69026.0,69025.0,1.18596083]
[1730140866480,0.001648,69026.0,69025.0,1.18996083]
[1730140866702,0.001648,69026.0,69025.0,1.17996083]
[1730140866943,0.001648,69026.0,69025.0,1.17596083]
[1730140867182,0.001648,69026.0,69025.0,1.20196083]
[1730140867505,0.001648,69026.0,69025.0,1.18996083]
[1730140867957,0.001648,69026.0,69025.0,1.20396083]
[1730140868923,0.001648,69026.0,69025.0,1.02006704]
[1730140870842,0.001648,69026.0,69025.0,0.86956323]
[1730140871079,0.001648,69026.0,69025.0,0.86456323]
[1730140871309,0.001648,69026.0,69025.0,0.61846323]
[1730140871552,0.001648,69026.0,69025.0,0.47358823]
[1730140872503,0.001648,69026.0,69025.0,0.61846323]
[1730140872752,0.31607851,69026.0,69025.0,0.47358823]
[1730140873000,0.32961889,69026.0,69025.0,0.47358823]
[1730140873248,0.35128275,69026.0,69025.0,0.47358823]
[1730140873475,0.35128275,69026.0,69025.0,0.468454]
[1730140873719,0.362113,69026.0,69025.0,0.468454]
[1730140873957,0.362113,69026.0,69025.0,0.45957674]
[1730140874200,0.362113,69026.0,69025.0,0.44557674]
[1730140875384,0.4857445,69026.0,69025.0,0.44557674]
[1730140876067,0.63624831,69026.0,69025.0,0.44557674]
[1730140876328,0.74124831,69026.0,69025.0,0.44557674]
[1730140876564,1.08354831,69026.0,69025.0,0.44557674]
[1730140876783,1.03751382,69026.0,69025.0,0.44557674]
[1730140877005,1.12684558,69026.0,69025.0,0.440454]
[1730140877225,1.10652371,69026.0,69025.0,0.440454]
[1730140877438,1.2658957,69026.0,69025.0,0.440454]
[1730140877660,1.35300952,69026.0,69025.0,0.440454]
[1730140878101,1.37467186,69026.0,69025.0,0.440454]
[1730140878319,1.387006,69026.0,69025.0,0.440454]
[1730140878534,1.2786943,69026.0,69025.0,0.440454]
[1730140878746,1.3653008,69026.0,69025.0,0.440454]
[1730140878957,1.3703008,69026.0,69025.0,0.441454]
[1730140879193,1.392006,69026.0,69025.0,0.441454]
[1730140879416,0.59901702,69013.0,69012.0,0.000823]
[1730140879628,1.47125323,69013.0,69012.0,0.000823]
[1730140880520,1.51453015,69013.0,69012.0,0.000823]
[1730140880728,1.50370429,69013.0,69012.0,0.000823]
[1730140880944,1.51451282,69013.0,69012.0,0.000823]
[1730140881159,1.68572696,69013.0,69012.0,0.001823]
[1730140881380,1.89245004,69013.0,69012.0,0.001823]
[1730140881603,1.53948772,69013.0,69012.0,0.001823]
[1730140882045,1.55348772,69013.0,69012.0,0.002823]
[1730140882469,1.53948772,69013.0,69012.0,0.000823]
[1730140882688,1.68199153,69013.0,69012.0,0.001823]
[1730140882954,1.69599153,69013.0,69012.0,0.002823]
[1730140883170,1.52183601,69013.0,69012.0,0.001823]
[1730140883398,1.25983601,69013.0,69012.0,0.001823]
[1730140883620,1.24902748,69013.0,69012.0,0.001823]
[1730140883835,1.24031715,69013.0,69012.0,0.002823]
[1730140884043,1.24911591,69013.0,69012.0,0.001823]
[1730140884265,0.82905359,69013.0,69012.0,0.001823]
[1730140884482,0.81521975,69013.0,69012.0,0.002823]
[1730140884698,0.98977826,69013.0,69012.0,0.002823]
[1730140884907,0.81521939,69013.0,69012.0,0.002823]
[1730140885329,0.82392563,69013.0,69012.0,0.001823]
[1730140885551,0.90783914,69013.0,69012.0,0.000823]
[1730140885765,0.92083914,69013.0,69012.0,0.001823]
[1730140886198,0.90783914,69013.0,69012.0,0.000823]
[1730140886410,0.82192563,69013.0,69012.0,0.002823]
[1730140886625,0.82592563,69013.0,69012.0,0.002823]
[1730140887059,0.80321939,69013.0,69012.0,0.002823]
[1730140888147,0.78972251,69013.0,69012.0,0.002823]
[1730140888356,0.80321578,69013.0,69012.0,0.002823]
[1730140891074,0.95371959,69013.0,69012.0,0.002823]
[1730140891784,0.97642624,69013.0,69012.0,0.002823]
[1730140892008,0.97642568,69013.0,69012.0,0.002823]
[1730140892459,0.82592187,69013.0,69012.0,0.002823]
[1730140894937,0.66752916,69013.0,69012.0,0.002823]
[1730140895172,0.66752916,69013.0,69012.0,0.237023]
[1730140895395,0.66752916,69013.0,69012.0,0.38713029]
[1730140895683,0.66752916,69013.0,69012.0,0.24222829]
[1730140897416,0.64482251,69013.0,69012.0,0.24222829]
[1730140898515,0.65834441,69013.0,69012.0,0.24222829]
[1730140898733,0.65834441,69013.0,69012.0,0.67692829]
[1730140899183,0.80324441,69013.0,69012.0,0.67692829]
[1730140899411,0.92753635,69013.0,69012.0,0.67692829]
[1730140899622,0.95998898,69013.0,69012.0,0.671723]
[1730140900047,0.95998898,69013.0,69012.0,0.67692829]
[1730140900476,0.83569704,69013.0,69012.0,0.67692829]
[1730140901816,0.85840326,69013.0,69012.0,0.67692829]
[1730140902468,0.85842734,69013.0,69012.0,0.67692829]
[1730140904406,0.85842734,69013.0,69012.0,0.44272829]
[1730140904619,1.00893115,69013.0,69012.0,0.44272829]
[1730140904833,1.15943496,69013.0,69012.0,0.44272829]
[1730140907054,1.12427797,69013.0,69012.0,0.44272829]
[1730140907291,1.45400486,69013.0,69012.0,0.437523]
[1730140907528,1.45630862,69013.0,69012.0,0.437523]
[1730140908232,1.45230862,69013.0,69012.0,0.437523]
[1730140908487,1.45230862,69013.0,69012.0,0.438523]
[1730140908488,1.50553653,69013.0,69012.0,0.438523]
[1730140908743,1.50553653,69013.0,69012.0,0.436523]
[1730140908744,1.50551874,69013.0,69012.0,0.436523]
[1730140908973,1.49551922,69013.0,69012.0,0.435523]
[1730140909179,1.49747657,69013.0,69012.0,0.435523]
[1730140909392,1.46530862,69013.0,69012.0,0.436523]
[1730140909609,1.46530862,69013.0,69012.0,0.437523]
[1730140909610,1.5203647,69013.0,69012.0,0.437523]
[1730140910314,1.52231951,69013.0,69012.0,0.437523]
[1730140910582,1.54503053,69013.0,69012.0,0.437523]
[1730140910812,1.60979444,69013.0,69012.0,0.437523]
[1730140911494,1.54303022,69013.0,69012.0,0.437523]
[1730140912170,1.49982272,69013.0,69012.0,0.437523]
[1730140912615,1.56464467,69013.0,69012.0,0.437523]
[1730140913748,1.49982272,69013.0,69012.0,0.437523]
[1730140914444,1.7442275,69013.0,69012.0,0.437523]
[1730140915524,1.65782664,69013.0,69012.0,0.437523]
[1730140916184,1.82738515,69013.0,69012.0,0.437523]
[1730140916617,1.93566937,69013.0,69012.0,0.437523]
[1730140917039,1.93366937,69013.0,69012.0,0.437523]
[1730140917249,1.82547045,69013.0,69012.0,0.437523]
[1730140917456,1.91095835,69013.0,69012.0,0.437523]
[1730140917858,1.91090202,69013.0,69012.0,0.437523]
[1730140918540,1.91097039,69013.0,69012.0,0.437523]
[1730140919410,1.8027031,69013.0,69012.0,0.437523]
[1730140919616,1.8047031,69013.0,69012.0,0.437523]
[1730140919825,1.8027031,69013.0,69012.0,0.437523]
[1730140920417,1.82541381,69013.0,69012.0,0.437523]
[1730140920821,1.82567889,69013.0,69012.0,0.437523]
[1730140921450,1.64622038,69013.0,69012.0,0.437523]
[1730140921659,1.62322038,69013.0,69012.0,0.437523]
[1730140921865,1.62522038,69013.0,69012.0,0.437523]
[1730140922515,1.73355132,69013.0,69012.0,0.437523]
[1730140922744,1.75655567,69013.0,69012.0,0.437523]
[1730140922974,1.64822038,69013.0,69012.0,0.437523]
[1730140924132,1.6373899,69013.0,69012.0,0.437523]
[1730140924372,1.63468246,69013.0,69012.0,0.437523]
[1730140924820,1.63468246,69013.0,69004.0,0.000823]
[1730140924821,0.534917,69005.0,69004.0,0.000823]
[1730140925056,0.72060586,69005.0,69004.0,0.000823]
[1730140925512,0.74331857,69005.0,69004.0,0.000823]
[1730140925733,0.80828872,69005.0,69004.0,0.000823]
[1730140925969,0.82228872,69005.0,69004.0,0.001823]
[1730140926254,0.97079253,69005.0,69004.0,0.002823]
[1730140926505,0.91806746,69005.0,69004.0,0.002823]
[1730140926721,0.89535475,69005.0,69004.0,0.002823]
[1730140927856,0.87100054,69005.0,69004.0,0.002823]
[1730140928096,0.90620077,69005.0,69004.0,0.002823]
[1730140928312,0.90619545,69005.0,69004.0,0.002823]
[1730140929486,0.9494915,69005.0,69004.0,0.002823]
[1730140929903,0.97220397,69005.0,69004.0,0.002823]
[1730140930550,0.97220397,69005.0,69004.0,0.081023]
[1730140930551,0.92890792,69005.0,69004.0,0.081023]
[1730140930768,0.91666284,69005.0,69004.0,0.081023]
[1730140931196,0.73815903,69005.0,69004.0,0.081023]
[1730140931402,0.48315903,69005.0,69004.0,0.081023]
[1730140931640,0.38320338,69005.0,69004.0,0.244623]
[1730140931869,0.08278257,69005.0,69004.0,0.244623]
[1730140932100,0.20601954,69005.0,69004.0,0.244623]
[1730140932318,0.22769957,69005.0,69004.0,0.24988658]
[1730140932757,0.21369957,69005.0,69004.0,0.24888658]
[1730140933181,0.21569957,69005.0,69004.0,0.24888658]
[1730140934082,0.21569957,69005.0,69004.0,0.24788658]
[1730140934083,0.32471603,69005.0,69004.0,0.24788658]
[1730140934424,0.32471603,69005.0,69004.0,0.24988658]
[1730140934534,0.49257961,69005.0,69004.0,0.24988658]
[1730140935020,0.49257961,69005.0,69004.0,0.244623]
[1730140935485,0.60757961,69005.0,69004.0,0.244623]
[1730140936564,0.60757961,69005.0,69004.0,0.081023]
[1730140937415,0.58486714,69005.0,69004.0,0.081023]
[1730140937855,0.57986714,69005.0,69004.0,0.081023]
[1730140938067,0.57486714,69005.0,69004.0,0.081023]
[1730140938907,0.53963709,69005.0,69004.0,0.081023]
[1730140939113,0.57492868,69005.0,69004.0,0.081023]
[1730140943864,0.57492868,69005.0,69004.0,0.251523]
[1730140946441,0.57492091,69005.0,69004.0,0.251523]
[1730140946651,0.56409158,69005.0,69004.0,0.251523]
[1730140947360,0.59756267,69005.0,69004.0,0.251523]
[1730140947572,0.59755995,69005.0,69004.0,0.251523]
[1730140948678,0.58494814,69005.0,69004.0,0.002823]
[1730140949557,0.8536975,69005.0,69004.0,0.002823]
[1730140950038,0.76696848,69005.0,69004.0,0.002823]
[1730140950267,0.7649051,69005.0,69004.0,0.002823]
[1730140950490,0.7649051,69005.0,69004.0,0.000823]
[1730140950952,0.7649051,69005.0,69004.0,0.001823]
[1730140951204,0.7649051,69005.0,69004.0,0.002823]
[1730140951205,0.7789051,69005.0,69004.0,0.002823]
[1730140951448,0.88731638,69005.0,69004.0,0.002823]
[1730140951678,0.7649051,69005.0,69004.0,0.001823]
[1730140951902,0.7789051,69005.0,69004.0,0.002823]
[1730140954031,0.74365649,69005.0,69004.0,0.002823]
[1730140954264,0.79175481,69005.0,69004.0,0.002823]
[1730140954494,0.509938,68995.0,68994.0,0.000823]
[1730140954715,1.6105281,68995.0,68994.0,0.000823]
[1730140954973,1.6105281,68995.0,68994.0,0.00568168]
[1730140955189,1.52373614,68995.0,68994.0,0.000823]
[1730140955394,1.67423995,68995.0,68994.0,0.000823]
[1730140957341,1.67523995,68995.0,68994.0,0.000823]
[1730140957816,1.61178847,68995.0,68994.0,0.000823]
[1730140958042,1.68121878,68995.0,68994.0,0.000823]
[1730140958518,1.76797499,68995.0,68994.0,0.000823]
[1730140960868,1.76675914,68995.0,68994.0,0.000823]
[1730140961641,1.64480641,68995.0,68994.0,0.000823]
[1730140961871,1.69188027,68995.0,68994.0,0.000823]
[1730140962318,1.70271552,68995.0,68994.0,0.000823]
[1730140964255,1.70271552,68995.0,68994.0,0.244123]
[1730140964256,1.02936469,68995.0,68994.0,0.244123]
[1730140964477,1.00665056,68995.0,68994.0,0.24900965]
[1730140965441,0.95409957,68995.0,68994.0,0.244123]
[1730140965668,1.00016311,68995.0,68994.0,0.244123]
[1730140966108,1.15066692,68995.0,68994.0,0.244123]
[1730140966331,1.25483167,68995.0,68994.0,0.244123]
[1730140966541,1.29818173,68995.0,68994.0,0.244123]
[1730140966757,1.25483167,68995.0,68994.0,0.000823]
[1730140967576,1.4139507,68995.0,68994.0,0.000823]
[1730140968405,1.43128897,68995.0,68994.0,0.000823]
[1730140969083,1.43128205,68995.0,68994.0,0.000823]
[1730140971078,1.45428205,68995.0,68994.0,0.000823]
[1730140971597,1.43260459,68995.0,68994.0,0.000823]
[1730140971945,1.45426968,68995.0,68994.0,0.000823]
[1730140972400,1.44826968,68995.0,68994.0,0.000823]
[1730140972823,1.44471335,68995.0,68994.0,0.000823]
[1730140973042,1.45725307,68995.0,68994.0,0.000823]
[1730140973256,1.45325701,68995.0,68994.0,0.001823]
[1730140973458,1.46725701,68995.0,68994.0,0.001823]
[1730140973670,1.46125701,68995.0,68994.0,0.000823]
[1730140973881,1.45825701,68995.0,68994.0,0.001823]
[1730140974309,1.47225701,68995.0,68994.0,0.001823]
[1730140974516,1.47136494,68995.0,68994.0,0.001823]
[1730140974737,1.49408135,68995.0,68994.0,0.001823]
[1730140974991,1.49608135,68995.0,68994.0,0.001823]
[1730140976107,1.49408135,68995.0,68994.0,0.001823]
[1730140976715,1.51140757,68995.0,68994.0,0.001823]
[1730140977146,1.49607672,68995.0,68994.0,0.001823]
[1730140977368,1.47336031,68995.0,68994.0,0.001823]
[1730140978976,1.47136031,68995.0,68994.0,0.001823]
[1730140979194,1.47086502,68995.0,68994.0,0.001823]
[1730140979399,1.47286502,68995.0,68994.0,0.001823]
[1730140980030,1.47086502,68995.0,68994.0,0.001823]
[1730140980241,1.47286502,68995.0,68994.0,0.001823]
[1730140980461,1.47287343,68995.0,68994.0,0.001823]
[1730140981940,1.49558985,68995.0,68994.0,0.001823]
[1730140983421,1.54072515,68995.0,68994.0,0.001823]
[1730140983741,1.46742379,68995.0,68994.0,0.001823]
[1730140983963,1.72625929,68995.0,68994.0,0.001823]
[1730140984179,1.78984855,68995.0,68994.0,0.239323]
[1730140984408,1.70325929,68995.0,68994.0,0.239323]
[1730140984648,1.78984855,68995.0,68994.0,0.239323]
[1730140984858,1.70411266,68995.0,68994.0,0.239323]
[1730140985076,1.29552762,68995.0,68994.0,0.239323]
[1730140985291,1.19552762,68995.0,68994.0,0.239323]
[1730140986152,1.17052762,68995.0,68994.0,0.238323]
[1730140986560,1.18452762,68995.0,68994.0,0.239323]
[1730140986766,1.28452762,68995.0,68994.0,0.239323]
[1730140986970,1.28439167,68995.0,68994.0,0.239323]
[1730140987188,1.2618112,68995.0,68994.0,0.239323]
[1730140987386,1.26562743,68995.0,68994.0,0.239323]
[1730140987627,1.2618341,68995.0,68994.0,0.239323]
[1730140988052,1.28441884,68995.0,68994.0,0.239323]
[1730140989548,1.30176171,68995.0,68994.0,0.239323]
[1730140989771,1.30676171,68995.0,68994.0,0.239323]
[1730140990009,1.28417697,68995.0,68994.0,0.239323]
[1730140990223,1.28917697,68995.0,68994.0,0.239323]
[1730140990651,1.33247623,68995.0,68994.0,0.239323]
[1730140991419,1.28917697,68995.0,68994.0,0.239323]
[1730140991670,1.24395029,68995.0,68994.0,0.239323]
[1730140991884,1.26833757,68995.0,68994.0,0.239323]
[1730140992309,1.2509947,68995.0,68994.0,0.239323]
[1730140993206,1.27357583,68995.0,68994.0,0.239323]
[1730140993442,1.31687509,68995.0,68994.0,0.239323]
[1730140995487,1.06137128,68995.0,68994.0,0.239323]
[1730140995702,0.84498708,68995.0,68994.0,0.239323]
[1730140995919,0.80976051,68995.0,68994.0,0.24421175]
[1730140996128,0.83143575,68995.0,68994.0,0.24421175]
[1730140996359,0.70004477,68995.0,68994.0,0.24421175]
[1730140996611,0.69688154,68995.0,68994.0,0.40897149]
[1730140996822,0.676043,68995.0,68994.0,0.24320994]
[1730140997038,0.68988011,68995.0,68994.0,0.24320994]
[1730140997245,0.68988011,68995.0,68994.0,0.24520994]
[1730140997246,0.679043,68995.0,68994.0,0.24520994]
[1730140997470,0.65736885,68995.0,68994.0,0.24320994]
[1730140997968,0.68003435,68995.0,68994.0,0.25120994]
[1730140998184,0.6908671,68995.0,68994.0,0.25120994]
[1730140998388,0.67703435,68995.0,68994.0,0.25120994]
[1730140998593,0.67703435,68995.0,68994.0,0.25320994]
[1730140999245,0.65536885,68995.0,68994.0,0.25320994]
[1730141000088,0.80030685,68995.0,68994.0,0.25320994]
[1730141000530,0.65536885,68995.0,68994.0,0.25320994]
[1730141001163,0.82195332,68995.0,68994.0,0.25320994]
[1730141001376,0.83277508,68995.0,68994.0,0.25320994]
[1730141001597,0.82195332,68995.0,68994.0,0.248323]
[1730141001821,0.83277438,68995.0,68994.0,0.248323]
[1730141002252,0.68783638,68995.0,68994.0,0.248323]
[1730141002460,0.65536885,68995.0,68994.0,0.2531676]
[1730141003392,0.65536885,68995.0,68994.0,0.56775609]
[1730141003639,0.65534917,68995.0,68994.0,0.56775609]
[1730141004508,0.65534917,68995.0,68994.0,0.42281609]
[1730141004720,0.65534917,68995.0,68994.0,0.2531676]
[1730141005374,0.65534917,68995.0,68994.0,0.3981076]
[1730141007030,0.65534917,68995.0,68994.0,0.2531676]
[1730141007860,0.65534917,68995.0,68994.0,0.3981076]
[1730141008918,0.65534917,68995.0,68994.0,0.2531676]
[1730141009140,0.65534917,68995.0,68994.0,0.3981076]
[1730141010680,0.65534917,68995.0,68994.0,0.2531676]
[1730141010887,0.65534917,68995.0,68994.0,0.3981076]
[1730141011305,0.64182251,68995.0,68994.0,0.3981076]
[1730141011517,0.65535246,68995.0,68994.0,0.2531676]
[1730141012414,0.6770073,68995.0,68994.0,0.2531676]
[1730141012665,0.6770073,68995.0,68994.0,0.3981076]
[1730141012915,0.8219453,68995.0,68994.0,0.2531676]
[1730141013150,0.85275567,68995.0,68994.0,0.2531676]
[1730141013408,0.83277692,68995.0,68994.0,0.2531676]
[1730141015633,0.8219453,68995.0,68994.0,0.2531676]
[1730141016081,0.8327826,68995.0,68994.0,0.2531676]
[1730141018434,0.84633412,68995.0,68994.0,0.2531676]
[1730141018657,0.99683793,68995.0,68994.0,0.2531676]
[1730141018881,0.99683793,68995.0,68994.0,0.248323]
[1730141018882,0.6878446,68995.0,68994.0,0.248323]
[1730141019098,0.6878446,68995.0,68994.0,0.25316385]
[1730141019099,0.6743422,68995.0,68994.0,0.25316385]
[1730141019325,0.68789758,68995.0,68994.0,0.25316385]
[1730141019558,0.83555552,68995.0,68994.0,0.25316385]
[1730141019983,0.82200196,68995.0,68994.0,0.25316385]
[1730141020411,0.83555736,68995.0,68994.0,0.25316385]
[1730141020620,0.84640088,68995.0,68994.0,0.25316385]
[1730141022187,0.89952479,68995.0,68994.0,0.25316385]
[1730141022412,0.84640088,68995.0,68994.0,0.25316385]
[1730141022616,0.86375787,68995.0,68994.0,0.25316385]
[1730141022822,0.86375787,68995.0,68994.0,0.248323]
[1730141023031,1.01426168,68995.0,68994.0,0.248323]
[1730141024228,1.01426168,68995.0,68994.0,0.088623]
[1730141024623,1.16476549,68995.0,68994.0,0.088623]
[1730141027647,1.01426168,68995.0,68994.0,0.088623]
[1730141030243,0.99511917,68995.0,68994.0,0.010823]
[1730141030456,1.03688314,68995.0,68994.0,0.010823]
[1730141030677,1.40227219,68995.0,68994.0,0.010823]
[1730141030880,1.580276,68995.0,68994.0,0.010823]
[1730141031308,1.56671977,68995.0,68994.0,0.008823]
[1730141031716,1.73577197,68995.0,68994.0,0.008823]
[1730141032396,1.73477197,68995.0,68994.0,0.000823]
[1730141032885,1.73967197,68995.0,68994.0,0.000823]
[1730141033099,1.79673873,68995.0,68994.0,0.000823]
[1730141033324,0.265,68982.0,68981.0,0.21780956]
[1730141033539,0.74648115,68982.0,68981.0,0.22269429]
[1730141033765,1.00675477,68982.0,68981.0,0.00488473]
[1730141034026,1.00675477,68982.0,68965.0,0.0759]
[1730141034027,0.144996,68967.0,68965.0,0.0759]
[1730141034238,1.0824175,68967.0,68965.0,0.0759]
[1730141034463,1.09973145,68967.0,68966.0,0.22267571]
[1730141034674,0.145001,68965.0,68964.0,0.000823]
[1730141034908,0.34659999,68965.0,68964.0,0.0056671]
[1730141035127,0.46391168,68965.0,68964.0,0.000823]
[1730141035339,0.62441549,68965.0,68964.0,0.000823]
[1730141035556,0.89697377,68965.0,68964.0,0.000823]
[1730141035778,0.87441549,68965.0,68964.0,0.000823]
[1730141036200,0.89741549,68965.0,68964.0,0.000823]
[1730141036892,0.89841549,68965.0,68964.0,0.006823]
[1730141037107,0.89741549,68965.0,68964.0,0.000823]
[1730141037546,0.90441549,68965.0,68964.0,0.000823]
[1730141037764,0.90341549,68965.0,68964.0,0.000823]
[1730141037994,0.89741549,68965.0,68964.0,0.000823]
[1730141038419,0.90341549,68965.0,68964.0,0.000823]
[1730141039077,0.90441549,68965.0,68964.0,0.000823]
[1730141039936,0.62641549,68965.0,68964.0,0.253123]
[1730141040155,0.6041038,68965.0,68964.0,0.253123]
[1730141041299,0.6038899,68965.0,68964.0,0.000823]
[1730141041531,0.62113192,68965.0,68964.0,0.000823]
[1730141041743,0.6038899,68965.0,68964.0,0.000823]
[1730141043898,0.60386624,68965.0,68964.0,0.000823]
[1730141046206,0.62109978,68965.0,68964.0,0.000823]
[1730141046622,0.60386624,68965.0,68964.0,0.000823]
[1730141048759,0.62110912,68965.0,68964.0,0.000823]
[1730141049446,0.62113902,68965.0,68964.0,0.000823]
[1730141050122,0.64360039,68965.0,68964.0,0.000823]
[1730141050339,0.62113902,68965.0,68964.0,0.000823]
[1730141050555,0.64386292,68965.0,68964.0,0.000823]
[1730141051633,0.63883683,68965.0,68964.0,0.000823]
[1730141051855,0.48833302,68965.0,68964.0,0.245523]
[1730141052062,0.3486182,68965.0,68964.0,0.245523]
[1730141052275,0.3486182,68965.0,68964.0,0.25025648]
[1730141052276,0.30863381,68965.0,68964.0,0.25025648]
[1730141053103,0.31512091,68965.0,68964.0,0.245523]
[1730141053312,0.44835056,68965.0,68964.0,0.245523]
[1730141053729,0.48834716,68965.0,68964.0,0.245523]
[1730141054809,0.45328921,68965.0,68964.0,0.245523]
[1730141055016,0.48838726,68965.0,68964.0,0.245523]
[1730141055228,0.51088601,68965.0,68964.0,0.245523]
[1730141055505,0.3603822,68965.0,68964.0,0.245523]
[1730141056128,0.2603822,68965.0,68964.0,0.245523]
[1730141056370,0.23765978,68965.0,68964.0,0.245523]
[1730141056579,0.21516103,68965.0,68964.0,0.245523]
[1730141057216,0.07016003,68965.0,68964.0,0.245523]
[1730141057454,0.05288585,68965.0,68964.0,0.245523]
[1730141057666,0.05288585,68965.0,68964.0,0.39525948]
[1730141057667,0.04209805,68965.0,68964.0,0.39525948]
[1730141058139,0.03609805,68965.0,68964.0,0.39525948]
[1730141058352,0.03509805,68965.0,68964.0,0.39525948]
[1730141058561,0.04109805,68965.0,68964.0,0.25025648]
[1730141058771,0.04209805,68965.0,68964.0,0.25925648]
[1730141058987,0.03609805,68965.0,68964.0,0.25925648]
[1730141059235,0.03618359,68965.0,68964.0,0.25925648]
[1730141059503,0.03618359,68965.0,68964.0,0.40715931]
[1730141059734,0.03618359,68965.0,68964.0,0.40425948]
[1730141061452,0.03618359,68965.0,68964.0,0.40625948]
[1730141061895,0.64082251,68967.0,68966.0,0.149998]
[1730141062110,0.64082251,68967.0,68966.0,0.5715747]
[1730141063586,0.64082251,68967.0,68966.0,0.5735747]
[1730141064006,0.64182251,68967.0,68966.0,0.5775747]
[1730141064651,0.64282251,68967.0,68966.0,0.5915747]
[1730141064875,0.64282251,68967.0,68966.0,0.5895747]
[1730141065347,0.64282251,68967.0,68966.0,0.5915747]
[1730141067654,0.64282251,68967.0,68966.0,0.5895747]
[1730141068517,0.64282251,68967.0,68966.0,0.5915747]
[1730141069354,0.64282251,68967.0,68966.0,0.5895747]
[1730141070286,0.64282251,68967.0,68966.0,1.0245647]
[1730141070499,0.64282251,68967.0,68966.0,1.0265647]
[1730141071412,0.64282251,68967.0,68966.0,1.0245647]
[1730141072683,0.64282251,68967.0,68966.0,0.85491621]
[1730141080728,0.64282251,68967.0,68966.0,0.84991621]
[1730141080949,0.64282251,68967.0,68966.0,0.70491821]
[1730141081160,0.65636168,68967.0,68966.0,0.70491821]
[1730141081613,0.80135768,68967.0,68966.0,0.70491821]
[1730141081829,0.6780317,68967.0,68966.0,0.70491821]
[1730141082050,0.8230277,68967.0,68966.0,0.70491821]
[1730141082264,0.8230277,68967.0,68966.0,0.70019]
[1730141082265,0.84740634,68967.0,68966.0,0.70019]
[1730141082700,0.84640634,68967.0,68966.0,0.70087826]
[1730141083160,0.70241034,68967.0,68966.0,0.70487826]
[1730141083377,0.70141034,68967.0,68966.0,0.69087826]
[1730141083592,0.70041034,68967.0,68966.0,0.68687826]
[1730141083817,0.70141034,68967.0,68966.0,0.70087826]
[1730141084080,0.70141034,68967.0,68966.0,0.68887826]
[1730141084310,0.70241034,68967.0,68966.0,0.69587826]
[1730141085699,0.69157507,68967.0,68966.0,0.69587826]
[1730141085919,0.70243766,68967.0,68966.0,0.69587826]
[1730141086137,0.70243766,68967.0,68966.0,0.44867826]
[1730141086357,0.84743366,68967.0,68966.0,0.44867826]
[1730141087252,0.70243766,68967.0,68966.0,0.44867826]
[1730141088629,0.84743366,68967.0,68966.0,0.44867826]
[1730141089560,0.6536696,68967.0,68966.0,0.44867826]
[1730141089790,0.70252359,68967.0,68966.0,0.44867826]
[1730141090894,0.70417159,68967.0,68966.0,0.44867826]
[1730141093552,0.64447051,68967.0,68966.0,0.44867826]
[1730141093792,0.70416228,68967.0,68966.0,0.44867826]
[1730141094011,0.70416228,68967.0,68966.0,0.82847626]
[1730141094250,0.003648,68967.0,68966.0,0.99598007]
[1730141094497,0.21780956,68978.0,68973.0,0.005]
[1730141094722,0.0135697,68977.0,68976.0,0.53952549]
[1730141095164,0.0135697,68977.0,68976.0,0.97914945]
[1730141096329,0.0135697,68977.0,68976.0,0.80950096]
[1730141096535,0.0135697,68977.0,68976.0,0.82350096]
[1730141096674,0.0145697,68977.0,68976.0,0.82750096]
[1730141097386,0.001,68977.0,68976.0,0.68252396]
[1730141097579,0.001,68977.0,68976.0,0.82750096]
[1730141097580,0.01455927,68977.0,68976.0,0.82750096]
[1730141097794,0.02269454,68977.0,68976.0,0.82750096]
[1730141098018,0.03624765,68977.0,68976.0,0.82750096]
[1730141098237,0.01455679,68977.0,68976.0,0.82750096]
[1730141098443,0.03624575,68977.0,68976.0,0.82750096]
[1730141098650,0.03624543,68977.0,68976.0,0.82750096]
[1730141099963,0.03534543,68977.0,68976.0,0.68252396]
[1730141100162,0.03534543,68977.0,68976.0,0.82750096]
[1730141100438,0.03524543,68977.0,68976.0,0.68252396]
[1730141100848,0.03434543,68977.0,68976.0,0.68252396]
[1730141101071,0.04789647,68977.0,68976.0,0.68252396]
[1730141101299,0.20361191,68977.0,68976.0,0.68252396]